Workbook

Sheet Spares (hidden)
A1: 5 Year List of Spares
A2: Spare Part | B2: Qty/year | C2: No. of Years | D2: Amount/spare | E2: Amount for 5 years
A3: 160 KV Generator | B3: 15 | C3: 5 | D3: R100,000.00 | E3: =B3*C3*D3 -> R7,500,000.00
A4: 300 KV Generator | B4: 2 | C4: 3 | D4: R1,200,000.00 | E4: =B4*C4*D4 -> R7,200,000.00
A5: HiTrax | B5: 15 | C5: 5 | D5: R80,000.00 | E5: R6,000,000.00
A6: 6046 XRC | B6: 15 | C6: 5 | D6: R40,000.00 | E6: R3,000,000.00
A7: 150150 XRC | B7: 2 | C7: 2 | D7: R150,000.00 | E7: R600,000.00
A8: Keyboard | B8: 15 | C8: 5 | D8: R1,200.00 | E8: R90,000.00
A9: Monitor | B9: 20 | C9: 5 | D9: R3,000.00 | E9: R300,000.00
A10: 4 Pin AMD Power Supply | B10: 15 | C10: 5 | D10: R7,000.00 | E10: R525,000.00
A11: 3 Pin AMD Power Supply | B11: 15 | C11: 5 | D11: R7,000.00 | E11: R525,000.00
A12: Drum Motor | B12: 10 | C12: 5 | D12: R12,000.00 | E12: R600,000.00
A13: Indicator Lamp | B13: 1000 | C13: 5 | D13: R40.00 | E13: R200,000.00
A14: 6046 Conveyor Belt | B14: 8 | C14: 5 | D14: R6,000.00 | E14: R240,000.00
A15: 100100 Conveyor Belt | B15: 2 | C15: 2 | D15: R8,000.00 | E15: R32,000.00
A16: 150150 Conveyor Belt | B16: 2 | C16: 2 | D16: R12,000.00 | E16: R48,000.00
A17: PI Board | B17: 15 | C17: 5 | D17: R32,000.00 | E17: R2,400,000.00
A18: Light Barrier | B18: 15 | C18: 5 | D18: R4,000.00 | E18: R300,000.00
A19: 6046 Lead Curtain | B19: 72 | C19: 5 | D19: R250.00 | E19: R90,000.00
A20: 100100 Lead Curtain | B20: 30 | C20: 5 | D20: R500.00 | E20: R75,000.00
A21: 150150 Lead Curtain | B21: 30 | C21: 5 | D21: R700.00 | E21: R105,000.00
A22: 150150 Tension Roller | B22: 2 | C22: 5 | D22: R2,500.00 | E22: R25,000.00
A23: Emergency Stop | B23: 15 | C23: 5 | D23: R900.00 | E23: R67,500.00
A25: TOTAL | D25: =SUM(E3:E23) -> R29,922,500.00

Sheet Summary Costs
A6: Summary
A7: Item No. | B7: Description | C7: Year 1 | D7: Year 2 | E7: Year 3 | F7: Year 4 | G7: Year 5 | H7: Total
D8: Escalation Percentage at 6%
A9: 1 | B9: Sub Total A - Overheads | C9: ='A-Overheads'!F12 -> R120,000.00 | D9: =C9*1.06 -> R127,200.00 | E9: =D9*1.06 -> R134,832.00 | F9: =E9*1.06 -> R142,921.92 | G9: R151,497.24 | H9: =SUM(C9:G9) -> R676,451.16
A11: 2 | B11: Sub Total B - Preventative Maintenance | C11: ='B-Preventative Maint'!G19 -> 0 | D11: =C11*1.06 -> 0 | E11: =D11*1.06 -> 0 | F11: =E11*1.06 -> 0 | G11: =F11*1.06 -> 0 | H11: =SUM(C11:G11) -> 0
A13: 3 | B13: Sub Total C - Callouts | C13: ='C-Call Outs'!E6 -> 0 | D13: =C13*1.06 -> 0 | E13: =D13*1.06 -> 0 | F13: =E13*1.06 -> 0 | G13: =F13*1.06 -> 0 | H13: 0
A15: 4 | B15: Sub Total D - Spares | C15: ='D-Airport Spares'!I23 -> 0 | D15: =C15*1.06 -> 0 | E15: =D15*1.06 -> 0 | F15: =E15*1.06 -> 0 | G15: =F15*1.06 -> 0 | H15: 0
A17: 5 | B17: Provisional Sums (Permits) | C17: R50,000.00 | D17: R50,000.00 | E17: R50,000.00 | F17: R50,000.00 | G17: R50,000.00 | H17: =SUM(C17:G17) -> R250,000.00
B19: Total Year 1 (Y1) | C19: =C9+C11+C13+C15 -> R120,000 | D19: =C19*1.06 -> R127,200.00 | E19: =D19*1.06 -> R134,832.00 | F19: =E19*1.06 -> R142,921.92 | G19: =F19*1.06 -> R151,497.24 | H19: R676,451.16
B21: Total E - Total Maintenance Cost for Five (5) Years to be Carried to the Form of Offer

Sheet A-Overheads
B1: PART A: Contract Overheads
B2: Description | C2: (a) | D2: (b) | E2: Unit of measure | F2: (c) = (a) x (b)
C3: No. of units | D3: Price Per Unit | F3: Price per year
B4: Contract Management and Administration (Including all required reporting such as monthly reports, analysis reports, audit reports, spares inventory management reports, etc.) | C4: 1 | E4: Each | F4: =C4*D4 -> 0
B5: Office Leasing (overheads, office utilities) - on the airport. Provisional sum. Claimed on proven cost. | C5: 12 | D5: R7,500 | E5: Each | F5: =C5*D5 -> R90,000
B6: On-demand Remote Support/Hotline services for maintenance, fault troubleshooting and resolution. | C6: 1 | E6: Each | F6: 0
B7: Access and Permits Requirements. Provisional sum. Claimed on proven cost. | C7: 1 | D7: R30,000 | E7: Each | F7: R30,000
B8: Other 1 (Specify) | E8: Each | F8: 0
B9: Other 2 (Specify) | E9: Each | F9: 0
B10: Other 3 (Specify) | E10: Each | F10: =C10*D10 -> 0
B12: Sub Total A - Overheads | F12: =SUM(F1:F10) -> R120,000

Sheet B-Preventative Maint
A1: PART B : Preventative Maintenance
A3: Machine/Component/System Name & Type | B3: Machine / Component Model | C3: (a) = Rate | D3: (b) = Number of Services Annually | E3: (c) = QTY | F3: (d) = a x b | G3: (e) = c x d
A4: 1. Battery Maintenance | C4: 0 | F4: =$C4*$D4 -> 0 | G4: =E4*F4 -> 0
A5: 2. Fire Safety Management | C5: 0 | F5: =$C5*$D5 -> 0 | G5: =E5*F5 -> 0
A6: 3. Thermal Management | C6: 0 | F6: 0 | G6: 0
A7: 4. Dynamic / Distributed Monitoring & Control (DMC) or SCADA or Monitoring plant and control platform | C7: 0 | F7: 0 | G7: 0
A8: 5. Software Upgrades | C8: 0 | F8: 0 | G8: 0
A9: 6. Ingress and dust control | C9: 0 | F9: 0 | G9: 0
A10: 7. Sensor cleaning | C10: 0 | F10: 0 | G10: 0
A11: 8. Configuration and calibration checks | C11: 0 | F11: 0 | G11: 0
A12: 9. Solar plant Inverters | C12: 0 | F12: 0 | G12: 0
A13: 10. Solar plant Software and controls | C13: 0 | F13: 0 | G13: 0
A14: Other 1 (Specify) | C14: 0 | F14: 0 | G14: 0
B15: Other 2 (Specify) | C15: 0 | F15: 0 | G15: 0
A16: Other 3 (Specify) | C16: 0 | F16: 0 | G16: 0
A17: Total Equipment | G17: =SUM(G4:G16) -> 0
A19: Sub Total B - Preventative Maintenance | G19: =G17 -> 0

Sheet C-Call Outs
A2: (a) | C2: Unit of Measure | D2: (b) | E2: (c) = (a) x (b)
A3: Number of Callouts | D3: Unit Price | E3: Price per Year Excluding VAT
C4: Each | E4: =D4*A4 -> 0
E6: =SUM(E4:E4) -> 0
A7: Battery Energy Storage Facility Callouts (Includes travelling, travelling time & first hour on site)
A9: Battery Energy Storage Facility Callouts (Includes travelling, travelling time & first hour on site)
A10: Service Description | C10: (a) | D10: Unit of Measure | E10: (b) | F10: (c) = (a) x (b)
B11: Specify Professional (i.e Engineer, Technician or Electrician) | C11: Number of Callouts | E11: Unit Price | F11: Price per Year Excluding VAT
A12: Call out Fee | D12: Each | E12: R | F12: R
A13: Call out Fee | D13: Each | E13: R | F13: R
A14: Call out Fee | D14: Each | E14: R | F14: R
A16: Sub Total C – Callouts | F16: R

Sheet D-Airport Spares
A2: Spare Part Description | B2: Spare Part Number | C2: (a) | D2: (b) | E2: (c) | F2: (d) = (a) x (c) | G2: (e) | H2: (f) = (d) x (e) | I2: (g) = (d) + (f)
C3: Reccomended No. of units | D3: Unit of Measure | E3: Price / Unit | F3: Total Excl VAT | G3: Mark-up % | H3: Markup Value Excl VAT | I3: Total Excl VAT
A4: Fuse | D4: Each | F4: =E4*C4 -> 0 | H4: =F4*G4 -> 0 | I4: =F4+H4 -> 0
A5: Temperature sensor | D5: Each | F5: =E5*C5 -> 0 | H5: =F5*G5 -> 0 | I5: =F5+H5 -> 0
A6: Humidity sensor | D6: Each | F6: =E6*C6 -> 0 | H6: 0 | I6: 0
A7: Water Immersion sensor | D7: Each | F7: 0 | H7: 0 | I7: 0
A8: Smoke detector | D8: Each | F8: 0 | H8: 0 | I8: 0
A9: Combustible gas detector | D9: Each | F9: 0 | H9: 0 | I9: 0
A10: Cooling liquid | D10: Each | F10: 0 | H10: 0 | I10: 0
A11: Hybrid Inverter | D11: Each | F11: 0 | H11: 0 | I11: 0
D12: Each | F12: 0 | H12: 0 | I12: 0
D13: Each | F13: =E13*C13 -> 0 | H13: 0 | I13: 0
D14: Each | F14: 0 | H14: 0 | I14: 0
D15: Each | F15: 0 | H15: 0 | I15: 0
D16: Each | F16: 0 | H16: 0 | I16: 0
D17: Each | F17: 0 | H17: 0 | I17: 0
D18: Each | F18: 0 | H18: 0 | I18: 0
D19: Each | F19: 0 | H19: 0 | I19: 0
D20: Each | F20: 0 | H20: 0 | I20: 0
D21: Each | F21: 0 | H21: 0 | I21: 0
D22: Each | F22: 0 | H22: 0 | I22: 0
A23: Sub Total D - Spares | I23: =SUM(I4:I22) -> 0

Sheet IBs (hidden)
A2: Model | B2: ORTIA | C2: CTIA | D2: KSIA | E2: PLZ | F2: GRJ | G2: ELS | H2: BRF | I2: KIM | J2: UPN | K2: Totals
A3: HS6046si | B3: 59 | C3: 36 | D3: 21 | E3: 4 | F3: 3 | G3: 4 | H3: 4 | I3: 2 | J3: 1 | K3: =SUM(B3:J3) -> 134
A4: HS 100100V | B4: 2 | C4: 0 | D4: 1 | E4: 0 | F4: 0 | G4: 0 | H4: 0 | I4: 0 | J4: 1 | K4: 4
A5: HS 7555 Si | B5: 2 | C5: 0 | D5: 0 | E5: 0 | F5: 0 | G5: 0 | H5: 0 | I5: 1 | J5: 2 | K5: 5
A6: HS 150150 | B6: 2 | C6: 2 | D6: 1 | E6: 0 | F6: 0 | G6: 0 | H6: 0 | I6: 0 | J6: 0 | K6: 5
A7: HS10080EDts | E7: 0 | K7: 0
A8: CEIA-HIPE-PNZ | B8: 56 | C8: 24 | D8: 22 | E8: 5 | F8: 4 | G8: 4 | H8: 4 | I8: 0 | J8: 3 | K8: 122
A9: IONSCAN 400B | B9: 5 | C9: 2 | D9: 2 | E9: 1 | F9: 1 | G9: 1 | H9: 1 | I9: 2 | J9: 1 | K9: 16
A10: Matrix Server | B10: 1 | C10: 0 | D10: 1 | E10: 0 | F10: 0 | G10: 0 | H10: 0 | I10: 0 | J10: 0 | K10: 2
A11: Other AMD | B11: 0 | C11: 1 | D11: 0 | E11: 0 | F11: 0 | G11: 0 | H11: 0 | I11: 0 | J11: 0 | K11: 1
A12: Other X-ray | B12: 0 | C12: 0 | D12: 0 | E12: 2 | F12: 0 | G12: 2 | H12: 0 | I12: 0 | J12: 0 | K12: 4
A13: TIP Server | B13: 1 | C13: 2 | D13: 1 | E13: 0 | F13: 0 | G13: 1 | H13: 0 | I13: 0 | J13: 0 | K13: 5
A14: Total Equipment | B14: =SUM(B3:B13) -> 128 | C14: 67 | D14: 49 | E14: =SUM(E3:E13) -> 12 | F14: 8 | G14: 12 | H14: 9 | I14: 5 | J14: 8 | K14: 298

Sheet Summary (hidden)
F1: Restrict Bid (incl vat) | G1: Restrict Bid (excl vat) | H1: BOQ | I1: Diff
E2: PLZ | F2: 496,413.68 | G2: =F2/1.15 -> 431,664.07 | H2: =#REF! ->  | I2: =H2-G2 ->  | J2: =I2/G2 ->  | L2: =I2/5/12 -> 
E3: GRJ | F3: 1,730,089.56 | G3: =F3/1.15 -> 1,504,425.70 | H3: =#REF! ->  | I3: =H3-G3 ->  | J3: =I3/G3 ->  | L3: =I3/5/12 ->  | N3: =76000*5 -> 380000
E4: ELS | F4: 3,629,261.92 | G4: 3,155,879.93 | H4: ='Summary Costs'!#REF! ->  | L4: =I4/5/12 -> 
E5: BFN | F5: 630,446.84 | G5: 548,214.64 | H5: =#REF! -> 
E6: KIM | F6: 703,751.60 | G6: 611,957.91 | H6: =#REF! -> 
E7: UPN | F7: 2,152,208.27 | G7: 1,871,485.45 | H7: =#REF! -> 
E8: RAs | F8: =SUM(F2:F7) -> 9,342,171.87 | G8: =SUM(G2:G7) -> 8,123,627.71
